bitfinex/quotes_BTCUSD_20240717
["timestamp","ask_amount","ask_price","bid_price","bid_amount"]
[1721232773328,0.078,64540.0,64521.0,0.154987]
[1721232773329,0.062093,64530.0,64527.0,0.154973]
[1721232773539,0.062093,64530.0,64513.0,0.05]
[1721232773540,0.07717479,64529.0,64514.0,0.083]
[1721232773704,0.07717479,64529.0,64484.0,0.1]
[1721232773705,0.07717479,64522.0,64504.0,0.083]
[1721232773905,0.0617,64528.0,64504.0,0.083]
[1721232773906,0.0617,64528.0,64505.0,0.01176763]
[1721232774148,0.0617,64528.0,64504.0,0.083]
[1721232774149,0.07717479,64522.0,64504.0,0.083]
[1721232774351,0.002794,64520.0,64496.0,0.52914871]
[1721232774551,0.155039,64500.0,64496.0,0.0661]
[1721232774760,0.155039,64500.0,64481.0,0.07717479]
[1721232774761,0.07717479,64499.0,64468.0,0.0661]
[1721232774992,0.310117,64492.0,64478.0,0.155091]
[1721232775179,0.310117,64492.0,64479.0,0.155087]
[1721232775377,0.310117,64492.0,64478.0,0.15509]
[1721232775378,0.155075,64485.0,64478.0,0.15509]
[1721232775588,0.310132,64489.0,64478.0,0.31018]
[1721232775791,0.310097,64496.0,64441.0,0.05]
[1721232775792,0.07717479,64481.0,64441.0,0.05]
[1721232775946,0.07717479,64481.0,64440.0,0.0006039]
[1721232775947,0.07717479,64474.0,64445.0,0.07743516]
[1721232776311,0.15438174,64480.0,64446.0,0.0658]
[1721232776312,0.07996879,64473.0,64446.0,0.0658]
[1721232776623,0.15438174,64480.0,64446.0,0.0658]
[1721232776624,0.002794,64460.0,64447.0,0.05]
[1721232776826,0.1,64479.0,64459.0,0.360271]
[1721232776954,0.002794,64478.0,64460.0,0.00310222]
[1721232777172,0.16191023,64477.0,64470.0,0.155108]
[1721232777424,0.1,64476.0,64465.0,0.310244]
[1721232777611,0.002794,64475.0,64469.0,0.155111]
[1721232777809,0.002794,64475.0,64360.0,30.24932548]
[1721232777810,0.00682087,64475.0,64360.0,30.24932548]
[1721232778017,0.00682087,64475.0,64460.0,0.15438174]
[1721232778216,0.155104,64473.0,64466.0,0.155119]
[1721232778419,0.1,64476.0,64466.0,0.15438174]
[1721232778621,0.155099,64475.0,64468.0,0.155115]
[1721232779094,0.1,64478.0,64465.0,0.310242]
[1721232779095,0.1,64478.0,64465.0,0.310245]
[1721232779271,0.310193,64476.0,64467.0,0.155116]
[1721232779451,0.014,64473.0,64468.0,0.155114]
[1721232779668,0.014,64473.0,64467.0,0.155116]
[1721232779875,0.014,64473.0,64395.0,0.41670825]
[1721232779876,0.00679537,64472.0,64458.0,0.310279]
[1721232780125,0.310217,64471.0,64445.0,0.07743516]
[1721232780335,0.1,64475.0,64457.0,0.155141]
[1721232780336,0.1,64470.0,64457.0,0.155141]
[1721232780533,0.155126,64464.0,64457.0,0.155141]
[1721232780738,0.155126,64464.0,64453.0,0.310302]
[1721232780739,0.155132,64461.0,64451.0,0.15438174]
[1721232780942,0.1,64460.0,64450.0,0.48636]
[1721232781149,0.09985,64460.0,64450.0,0.48636]
[1721232781360,0.310275,64459.0,64450.0,0.48636]
[1721232781601,0.002794,64472.0,64451.0,0.15438174]
[1721232781602,0.310231,64469.0,64451.0,0.15438174]
[1721232781838,0.09318,64480.0,64451.0,0.15438174]
[1721232781839,0.002794,64465.0,64458.0,0.05]
[1721232782038,0.002794,64465.0,64454.0,0.07717479]
[1721232782039,0.310179,64479.0,64462.0,0.12717479]
[1721232782324,0.062138,64483.0,64469.0,0.310223]
[1721232782467,0.002794,64490.0,64477.0,0.465282]
[1721232782707,0.002794,64490.0,64477.0,1.24003974]
[1721232783090,0.002794,64491.0,64477.0,1.29003974]
[1721232783324,0.002794,64501.0,64477.0,1.60022774]
[1721232783580,0.310068,64502.0,64489.0,0.0657]
[1721232783816,0.155041,64499.0,64492.0,0.155056]
[1721232784291,0.155041,64499.0,64490.0,0.155061]
[1721232784292,0.155046,64497.0,64490.0,0.155061]
[1721232784548,0.155046,64497.0,64491.0,0.15506]
[1721232785312,0.155047,64497.0,64490.0,0.155062]
[1721232785554,0.155047,64497.0,64482.0,0.310163]
[1721232785555,0.0767554,64500.0,64477.0,0.15438174]
[1721232785803,0.07717479,64493.0,64477.0,0.15438174]
[1721232786052,0.002794,64492.0,64479.0,0.310175]
[1721232786290,0.310103,64495.0,64477.0,0.15438174]
[1721232786533,0.310113,64493.0,64478.0,0.15438174]
[1721232786771,0.155057,64493.0,64485.0,0.155073]
[1721232787032,0.155058,64492.0,64484.0,0.310152]
[1721232787271,0.155058,64492.0,64460.0,0.0607]
[1721232787272,0.310151,64485.0,64460.0,0.0607]
[1721232787541,0.27035479,64491.0,64460.0,0.0607]
[1721232787542,0.002794,64484.0,64465.0,0.05]
[1721232787805,0.123,64491.0,64476.0,0.1463]
[1721232787806,0.310138,64488.0,64476.0,0.1463]
[1721232788065,0.002794,64487.0,64486.0,0.15507]
[1721232788281,0.008,64493.0,64480.0,0.05]
[1721232788517,0.008,64493.0,64476.0,0.1463]
[1721232788518,0.008,64493.0,64492.0,0.155057]
[1721232788766,0.77312071,64502.0,64490.0,0.310123]
[1721232788994,0.155078,64484.0,64464.0,0.05]
[1721232789264,0.15717574,64501.0,64477.0,0.15438174]
[1721232789265,0.155065,64489.0,64477.0,0.15438174]
[1721232789540,0.155065,64489.0,64463.0,0.2]
[1721232789541,0.07717479,64495.0,64470.0,0.31022]
[1721232789775,0.06212,64501.0,64470.0,0.31022]
[1721232789776,0.002794,64494.0,64478.0,0.15438174]
[1721232790012,0.002794,64494.0,64462.0,0.07717479]
[1721232790013,0.15509,64479.0,64473.0,0.155102]
[1721232790290,0.002,64488.0,64469.0,0.0654]
[1721232790513,0.13737479,64490.0,64455.0,0.12717479]
[1721232790514,0.310229,64469.0,64460.0,0.0654]
[1721232790752,0.07717479,64481.0,64460.0,0.0654]
[1721232791006,0.155126,64464.0,64454.0,0.0792]
[1721232791304,0.310212,64472.0,64455.0,0.15438174]
[1721232791539,0.46304871,64491.0,64486.0,0.310144]
[1721232791781,0.46304871,64491.0,64488.0,0.155067]
[1721232792022,0.310097,64496.0,64486.0,0.15438174]
[1721232792308,0.062119,64500.0,64486.0,0.46452174]
[1721232792570,0.002,64488.0,64487.0,0.46521]
[1721232793092,0.002,64488.0,64487.0,0.77535]
[1721232793328,0.002,64488.0,64487.0,0.92973174]
[1721232793611,0.002,64488.0,64487.0,1.43647174]
[1721232793848,0.002,64488.0,64487.0,0.12876046]
[1721232794081,0.002,64488.0,64451.0,0.49400871]
[1721232794360,0.23228079,64472.0,64471.0,0.46304871]
[1721232794587,0.23228079,64472.0,64451.0,0.46304871]
[1721232794588,0.07717479,64472.0,64451.0,0.46304871]
[1721232794822,0.07717479,64479.0,64457.0,0.155141]
[1721232794823,0.08089999,64471.0,64457.0,0.155141]
[1721232795070,0.08089999,64471.0,64445.0,0.00083516]
[1721232795071,0.155119,64467.0,64458.0,0.15748407]
[1721232795361,0.0778,64476.0,64458.0,0.15748407]
[1721232795645,0.155118,64467.0,64459.0,0.03126241]
[1721232795877,0.07717479,64475.0,64447.0,0.310329]
[1721232795878,0.1,64466.0,64447.0,0.310329]
[1721232796119,0.17717479,64466.0,64445.0,0.00083516]
[1721232796398,0.155156,64451.0,64445.0,0.00083516]
[1721232796626,0.465469,64451.0,64445.0,0.00083516]
[1721232796921,0.1,64466.0,64450.0,0.64074174]
[1721232797155,0.0629,64483.0,64457.0,0.05]
[1721232797398,0.0629,64483.0,64458.0,0.15438174]
[1721232797399,0.19546322,64482.0,64458.0,0.15438174]
[1721232797626,0.07717479,64473.0,64451.0,0.35442917]
[1721232797869,0.1,64481.0,64464.0,0.155123]
[1721232798114,0.1,64481.0,64453.0,0.310303]
[1721232798115,0.002,64467.0,64466.0,0.46536]
[1721232798350,0.002,64467.0,64466.0,0.1439]
[1721232798625,0.002,64467.0,64466.0,0.29828174]
[1721232798867,0.002794,64476.0,64466.0,0.3013836]
[1721232799117,0.002794,64487.0,64472.0,0.0621]
[1721232799380,0.46304871,64486.0,64473.0,0.0327293]
[1721232799617,0.155042,64499.0,64484.0,0.155075]
[1721232799904,0.002794,64498.0,64492.0,0.0621]
[1721232800150,0.360053,64506.0,64492.0,0.21648174]
[1721232800406,0.310069,64502.0,64492.0,0.0621]
[1721232800650,0.002794,64501.0,64493.0,0.01419]
[1721232800886,0.05,64506.0,64493.0,0.01419]
[1721232801154,0.15697479,64512.0,64493.0,0.01729058]
[1721232801155,0.155037,64501.0,64493.0,0.01729058]
[1721232801415,0.310046,64507.0,64493.0,0.01419]
[1721232801669,0.310046,64507.0,64494.0,0.01901963]
[1721232801670,0.155033,64503.0,64494.0,0.01901963]
[1721232801967,0.05,64505.0,64494.0,0.01591905]
[1721232802194,0.05,64505.0,64483.0,0.310155]
[1721232802195,0.155079,64483.0,64482.0,0.0788]
[1721232802429,0.155091,64478.0,64477.0,0.0631]
[1721232802670,0.310164,64482.0,64477.0,0.0631]
[1721232802909,0.1,64483.0,64477.0,0.0631]
[1721232803156,0.1,64483.0,64462.0,0.310258]
[1721232803157,0.05,64479.0,64469.0,0.0631]
[1721232803411,0.05,64479.0,64442.0,0.310353]
[1721232803412,0.04507194,64513.0,64495.0,0.310097]
[1721232803643,0.46304871,64502.0,64483.0,0.0031007]
[1721232803883,0.07717479,64512.0,64483.0,1.810158]
[1721232804133,0.002794,64511.0,64483.0,1.5]
[1721232804411,0.002794,64519.0,64490.0,0.1431]
[1721232804640,0.06729838,64523.0,64491.0,0.14778622]
[1721232804641,0.002794,64521.0,64491.0,0.14778622]
[1721232804899,0.06729838,64523.0,64507.0,0.1431]
[1721232805134,0.06729838,64523.0,64508.0,0.17738174]
[1721232805369,0.06729838,64523.0,64512.0,0.155009]
[1721232805617,0.06729838,64523.0,64513.0,0.24962591]
[1721232805885,0.001,64519.0,64514.0,0.155002]
[1721232806118,0.001,64519.0,64515.0,0.30938274]
[1721232806381,0.154994,64519.0,64507.0,0.1431]
[1721232806619,0.002794,64518.0,64508.0,0.17179152]
[1721232806868,0.04586558,64522.0,64509.0,0.310033]
[1721232807108,0.04586558,64522.0,64520.0,0.154989]
[1721232807342,0.04586558,64522.0,64521.0,0.16988064]
[1721232807860,0.19985058,64522.0,64507.0,0.298121]
[1721232808094,0.07717479,64520.0,64508.0,0.16869174]
[1721232808361,0.001,64519.0,64508.0,0.16869174]
[1721232808597,0.002794,64518.0,64511.0,0.46304871]
[1721232808834,0.04486558,64522.0,64521.0,0.154988]
[1721232809075,0.04586558,64522.0,64521.0,0.154988]
[1721232809342,0.04586558,64522.0,64521.0,0.464964]
[1721232809609,0.04486558,64522.0,64521.0,0.83834]
[1721232809873,0.00836,64536.0,64528.0,0.154969]
[1721232810134,0.00836,64536.0,64529.0,0.15748055]
[1721232810394,0.00836,64536.0,64535.0,0.1363]
[1721232810628,0.00836,64536.0,64535.0,0.29068174]
[1721232810857,0.00836,64536.0,64535.0,0.44873426]
[1721232811093,0.00836,64536.0,64535.0,0.75864326]
[1721232811334,0.00836,64536.0,64535.0,1.17230997]
[1721232812376,0.00836,64549.0,64535.0,0.39753797]
[1721232812651,0.00836,64549.0,64548.0,0.837415]
[1721232812914,0.00836,64549.0,64548.0,0.68195074]
[1721232813613,0.00836,64549.0,64548.0,0.0628]
[1721232814040,0.00836,64549.0,64541.0,0.0628]
[1721232814258,0.00836,64549.0,64542.0,0.15438174]
[1721232814473,0.00836,64549.0,64543.0,0.02171817]
[1721232814682,0.07717479,64548.0,64543.0,0.02171817]
[1721232814904,0.07717479,64548.0,64541.0,0.0628]
[1721232815120,0.154927,64547.0,64541.0,0.21718174]
[1721232815343,0.318203,64549.0,64535.0,0.0757]
[1721232815344,0.07717479,64545.0,64535.0,0.0757]
[1721232815572,0.154931,64545.0,64536.0,0.17105032]
[1721232815791,0.05,64548.0,64536.0,0.01357]
[1721232815792,0.154946,64539.0,64536.0,0.01357]
[1721232816010,0.309889,64540.0,64536.0,0.01357]
[1721232816011,0.154949,64537.0,64536.0,0.01357]
[1721232816230,0.05,64528.0,64519.0,0.06]
[1721232818208,0.154981,64524.0,64513.0,0.35721737]
[1721232818415,0.15397479,64534.0,64513.0,0.35721737]
[1721232818416,0.05,64538.0,64516.0,0.15438174]
[1721232818621,0.002794,64551.0,64536.0,0.154952]
[1721232818622,0.002794,64537.0,64536.0,0.154952]
[1721232818825,0.061,64551.0,64536.0,0.31297694]
[1721232818826,0.312644,64548.0,64536.0,0.31297694]
[1721232819030,0.309864,64545.0,64537.0,0.15438174]
[1721232819232,0.002794,64544.0,64537.0,0.15438174]
[1721232819405,0.154939,64542.0,64537.0,0.15438174]
[1721232819606,0.309866,64545.0,64537.0,0.15438174]
[1721232819836,0.30985,64548.0,64538.0,0.15438174]
[1721232819837,0.05,64548.0,64538.0,0.15438174]
[1721232820050,0.05,64542.0,64537.0,0.15438174]
[1721232820258,0.05,64542.0,64536.0,0.0154952]
[1721232820259,0.05,64540.0,64536.0,0.0154952]
[1721232820451,0.318203,64549.0,64534.0,0.0614]
[1721232820452,0.309899,64537.0,64534.0,0.0614]
[1721232820647,0.154954,64535.0,64534.0,0.21578174]
[1721232820854,0.05,64536.0,64534.0,0.15438174]
[1721232821053,0.05,64541.0,64534.0,0.15438174]
[1721232821261,0.05,64528.0,64521.0,0.0635]
[1721232821433,0.359915,64534.0,64522.0,0.01437]
[1721232821599,0.204958,64534.0,64523.0,0.157481]
[1721232821799,0.309862,64545.0,64523.0,0.157481]
[1721232821800,0.001,64527.0,64523.0,0.157481]
[1721232822040,0.001,64527.0,64524.0,0.15807884]
[1721232822241,0.001,64527.0,64525.0,0.15438174]
[1721232824177,0.001,64527.0,64526.0,0.00309915]
[1721232824353,0.001,64527.0,64526.0,0.15748079]
[1721232824524,0.001,64527.0,64526.0,0.15438174]
[1721232825516,0.05,64534.0,64526.0,0.15438174]
[1721232825725,0.05,64530.0,64522.0,0.01437]
[1721232826050,0.07717479,64533.0,64523.0,0.17018874]
[1721232826051,0.359944,64528.0,64523.0,0.17018874]
[1721232826228,0.05,64526.0,64523.0,0.17018874]
[1721232826428,0.154978,64525.0,64523.0,0.17018874]
[1721232827123,0.514943,64524.0,64523.0,0.015807]
[1721232827331,0.155021,64507.0,64506.0,0.08]
[1721232827900,0.102794,64523.0,64506.0,0.08]
[1721232827901,0.002794,64512.0,64506.0,0.23438174]
[1721232828104,0.155001,64516.0,64506.0,0.23438174]
[1721232828105,0.155,64516.0,64507.0,0.15438174]
[1721232828323,0.309993,64518.0,64507.0,0.15438174]
[1721232828531,0.309927,64532.0,64506.0,0.08]
[1721232828532,0.002794,64516.0,64510.0,0.310029]
[1721232828723,0.051,64530.0,64513.0,0.155006]
[1721232828724,0.154984,64523.0,64513.0,0.155006]
[1721232828938,0.465028,64512.0,64511.0,0.05475105]
[1721232829142,0.310062,64504.0,64497.0,0.0801]
[1721232829276,0.31007,64502.0,64498.0,0.22058174]
[1721232829477,0.002794,64501.0,64498.0,0.22058174]
[1721232829678,0.002794,64501.0,64480.0,0.310172]
[1721232829679,0.002794,64498.0,64487.0,0.0801]
[1721232829877,0.155065,64489.0,64488.0,0.15438174]
[1721232830169,0.465195,64489.0,64488.0,0.01543817]
[1721232830322,0.310106,64495.0,64479.0,0.0817]
[1721232830323,0.155086,64480.0,64479.0,0.0817]
[1721232830524,0.155086,64480.0,64479.0,0.15438174]
[1721232830730,0.155096,64476.0,64475.0,0.0641]
[1721232830937,0.465291,64476.0,64475.0,0.15438174]
[1721232831093,0.465288,64476.0,64475.0,0.15438174]
[1721232831295,0.515288,64476.0,64475.0,0.15438174]
[1721232831520,0.155108,64471.0,64470.0,0.03107]
[1721232831747,0.465324,64471.0,64470.0,0.03107]
[1721232831943,0.77554,64471.0,64470.0,0.03107]
[1721232832286,0.825637,64463.0,64462.0,0.03107]
[1721232832488,0.465382,64463.0,64462.0,0.03107]
[1721232832685,0.310233,64468.0,64462.0,0.18545174]
[1721232832921,0.155122,64465.0,64464.0,0.03107]
[1721232833125,0.90278679,64465.0,64464.0,0.03107]
[1721232833333,0.90278679,64465.0,64458.0,0.000924]
[1721232833334,0.15513,64462.0,64458.0,0.000924]
[1721232833535,0.46539,64462.0,64458.0,0.000924]
[1721232834083,0.88865,64462.0,64458.0,0.000924]
[1721232834286,1.19891,64462.0,64458.0,0.000924]
[1721232834665,1.84655174,64462.0,64458.0,0.000924]
[1721232834863,0.92565,64462.0,64458.0,0.000924]
[1721232835245,0.92565,64462.0,64461.0,0.00913734]
[1721232835444,1.39029174,64462.0,64461.0,0.00913734]
[1721232835664,1.60966653,64462.0,64461.0,0.00913734]
[1721232835863,1.91992653,64462.0,64461.0,0.00913734]
[1721232836538,1.92092653,64462.0,64461.0,0.00913734]
[1721232836955,1.91992653,64462.0,64461.0,0.00913734]
[1721232837181,2.32436653,64462.0,64461.0,0.00913734]
[1721232837406,2.01410653,64462.0,64461.0,0.00913734]
[1721232837609,1.92092653,64462.0,64461.0,0.00913734]
[1721232837811,1.87092653,64462.0,64461.0,0.00913734]
[1721232838511,1.91992653,64462.0,64461.0,0.00913734]
[1721232838704,1.91992653,64462.0,64461.0,0.03213734]
[1721232839057,1.91992653,64462.0,64461.0,0.00913734]
[1721232839257,1.37811,64462.0,64461.0,0.00913734]
[1721232839490,1.68837,64462.0,64461.0,0.03213734]
[1721232839693,1.84275174,64462.0,64461.0,0.00913734]
[1721232840193,1.37811,64462.0,64461.0,0.03213734]
[1721232840353,0.77565,64462.0,64461.0,0.03213734]
[1721232840559,0.05,64470.0,64461.0,0.03213734]
[1721232840763,0.05,64478.0,64462.0,0.22978174]
[1721232840962,0.05,64479.0,64463.0,0.20782349]
[1721232841213,0.002794,64487.0,64466.0,0.0602]
[1721232841429,0.002794,64487.0,64468.0,0.15438174]
[1721232841637,0.002794,64487.0,64479.0,0.0754]
[1721232841839,6.918e-05,64488.0,64480.0,0.06330103]
[1721232842035,6.918e-05,64488.0,64481.0,0.02930828]
[1721232842190,6.918e-05,64488.0,64482.0,0.023]
[1721232842394,0.155079,64483.0,64482.0,0.023]
[1721232842609,6.918e-05,64488.0,64482.0,0.17738174]
[1721232842808,6.918e-05,64488.0,64483.0,0.15748286]
[1721232843009,6.918e-05,64488.0,64484.0,0.08855671]
[1721232843230,0.15513618,64488.0,64484.0,0.08855671]
[1721232843429,0.15513618,64488.0,64484.0,0.023]
[1721232843430,0.360149,64485.0,64484.0,0.023]
[1721232843629,0.36026,64462.0,64453.0,0.0632]
[1721232843805,0.36026,64462.0,64452.0,0.0827]
[1721232843806,0.82565,64462.0,64452.0,0.0827]
[1721232844216,0.82565,64462.0,64446.0,0.072385]
[1721232845107,0.82565,64462.0,64447.0,0.00310277]
[1721232845309,0.82565,64462.0,64446.0,0.072385]
[1721232846781,1.13591,64462.0,64446.0,0.072385]
[1721232846933,1.70155174,64462.0,64446.0,0.009185]
[1721232847169,1.69155174,64462.0,64446.0,0.009185]
[1721232847361,1.22691,64462.0,64446.0,0.009185]
[1721232847568,0.60639,64462.0,64446.0,0.009185]
[1721232847813,0.61639,64462.0,64446.0,0.009185]
[1721232847967,0.20613,64462.0,64447.0,0.310328]
[1721232848153,0.20613,64462.0,64453.0,0.081]
[1721232848348,0.82665,64462.0,64461.0,0.03213734]
[1721232848658,0.82565,64462.0,64461.0,0.03213734]
[1721232848871,0.20513,64462.0,64461.0,0.03213734]
[1721232849300,0.15613,64462.0,64461.0,0.03213734]
[1721232849470,0.82665,64462.0,64461.0,0.03213734]
[1721232849997,1.13691,64462.0,64461.0,0.03213734]
[1721232850201,1.13591,64462.0,64461.0,0.03213734]
[1721232850456,1.13691,64462.0,64461.0,0.00913734]
[1721232850656,1.19871,64462.0,64461.0,0.00913734]
[1721232851116,0.001,64462.0,64461.0,0.07503734]
[1721232851314,0.001,64462.0,64461.0,0.42722743]
[1721232851552,0.05,64491.0,64461.0,0.42722743]
[1721232851553,0.46304871,64483.0,64461.0,0.27209543]
[1721232851774,0.002794,64482.0,64467.0,0.15438174]
[1721232852198,0.157866,64486.0,64473.0,0.155102]
[1721232852401,0.002794,64486.0,64478.0,0.155091]
[1721232852632,0.155061,64491.0,64479.0,0.33246874]
[1721232852833,0.002794,64490.0,64479.0,0.17738174]
[1721232852974,0.001,64482.0,64479.0,0.17738174]
[1721232853174,0.001,64482.0,64480.0,0.0031012]
[1721232853381,0.001,64482.0,64481.0,0.25660803]
[1721232853582,0.05,64487.0,64481.0,0.25660803]
[1721232853925,0.12717479,64493.0,64482.0,0.00310122]
[1721232854157,0.002794,64492.0,64483.0,0.17738174]
[1721232854361,0.05,64487.0,64481.0,0.023]
[1721232854562,0.05,64487.0,64481.0,0.17738174]
[1721232854708,0.05,64487.0,64482.0,0.01773817]
[1721232854919,0.05,64487.0,64483.0,0.023]
[1721232855119,0.05,64485.0,64483.0,0.023]
[1721232855666,0.07717479,64492.0,64483.0,0.023]
[1721232855667,0.59240579,64484.0,64483.0,0.023]
[1721232855814,0.23225179,64484.0,64483.0,0.023]
[1721232856026,0.59240579,64484.0,64483.0,0.023]
[1721232856374,0.360173,64480.0,64479.0,0.009]
[1721232856577,0.05,64479.0,64469.0,0.0777]
[1721232856853,0.07717479,64484.0,64471.0,0.19970574]
[1721232856854,0.05,64475.0,64471.0,0.19970574]
[1721232857058,0.05,64479.0,64471.0,0.19970574]
[1721232857194,0.05,64475.0,64472.0,0.04978187]
[1721232857604,0.31016,64483.0,64472.0,0.04978187]
[1721232857605,0.05,64479.0,64472.0,0.04978187]
[1721232857914,0.311152,64485.0,64472.0,0.04978187]
[1721232857915,0.05,64485.0,64473.0,0.15438174]
[1721232858119,0.05,64485.0,64478.0,0.15509]
[1721232858397,0.05,64487.0,64479.0,0.18048299]
[1721232858593,0.05,64485.0,64480.0,0.0335577]
[1721232858795,0.05,64487.0,64481.0,0.17738174]
[1721232859209,0.05,64485.0,64481.0,0.17738174]
[1721232859413,0.05,64490.0,64481.0,0.17738174]
[1721232859617,0.07717479,64492.0,64482.0,0.02109394]
[1721232859816,0.05,64495.0,64484.0,0.1386]
[1721232859992,0.12717479,64500.0,64485.0,0.17738174]
[1721232860197,0.12717479,64500.0,64485.0,0.18048249]
[1721232860494,0.05,64496.0,64485.0,0.18048249]
[1721232860706,0.07717479,64500.0,64487.0,0.310139]
[1721232860707,0.05,64500.0,64487.0,0.310139]
[1721232860865,0.05,64500.0,64489.0,0.155064]
[1721232860866,0.155038,64500.0,64489.0,0.155064]
[1721232861064,0.155038,64500.0,64490.0,0.33244274]
[1721232861065,0.05,64500.0,64490.0,0.33244274]
[1721232861347,0.15503,64504.0,64500.0,7.005e-05]
[1721232861551,0.360072,64501.0,64500.0,7.005e-05]
[1721232861731,0.82518,64501.0,64500.0,7.005e-05]
[1721232862264,1.135252,64501.0,64500.0,7.005e-05]
[1721232862466,1.445324,64501.0,64500.0,7.005e-05]
[1721232863099,1.528324,64501.0,64500.0,7.005e-05]
[1721232863296,1.594224,64501.0,64500.0,7.005e-05]
[1721232863502,1.694224,64501.0,64500.0,7.005e-05]
[1721232863912,1.84860574,64501.0,64500.0,7.005e-05]
[1721232864207,1.84960574,64501.0,64500.0,0.00907005]
[1721232866313,1.384152,64501.0,64500.0,7.005e-05]
[1721232866746,0.92518,64501.0,64500.0,0.00407005]
[1721232867345,0.92518,64501.0,64500.0,7.005e-05]
[1721232867346,0.465108,64501.0,64500.0,7.005e-05]
[1721232867639,0.465108,64501.0,64500.0,0.02307005]
[1721232868071,0.515108,64501.0,64500.0,0.02307005]
[1721232868277,0.82518,64501.0,64500.0,7.005e-05]
[1721232868495,1.43413374,64501.0,64500.0,7.005e-05]
[1721232868697,1.74420574,64501.0,64500.0,7.005e-05]
[1721232869027,1.53413374,64501.0,64500.0,7.005e-05]
[1721232869232,1.54984477,64501.0,64500.0,7.005e-05]
[1721232869451,0.310154,64484.0,64478.0,0.04360805]
[1721232869609,0.310154,64484.0,64479.0,0.16478255]
[1721232869610,0.05,64483.0,64479.0,0.16478255]
[1721232869836,0.46522,64486.0,64479.0,0.16478255]
[1721232870038,0.05,64477.0,64476.0,0.0604]
[1721232870237,0.05,64475.0,64465.0,0.0645]
[1721232870435,0.05,64475.0,64466.0,0.15748338]
[1721232870652,0.155092,64478.0,64466.0,0.31260238]
[1721232870890,0.155093,64478.0,64466.0,0.15748338]
[1721232871087,0.310138,64488.0,64467.0,0.06973574]
[1721232871088,0.05,64486.0,64467.0,0.06973574]
[1721232871292,0.155082,64482.0,64470.0,0.15511]
[1721232871492,0.155082,64482.0,64471.0,0.18048323]
[1721232871693,0.310157,64484.0,64471.0,0.33559023]
[1721232871694,0.155081,64483.0,64471.0,0.33559023]
[1721232871893,0.155083,64482.0,64471.0,0.18048323]
[1721232872099,0.001,64477.0,64476.0,0.164096]
[1721232872299,0.001,64477.0,64476.0,0.16338174]
[1721232872501,0.001,64477.0,64476.0,0.32818174]
[1721232872813,0.001,64477.0,64476.0,0.48327774]
[1721232872988,0.001,64477.0,64476.0,0.56978219]
[1721232873410,0.001,64477.0,64476.0,0.87997419]
[1721232874027,0.001,64477.0,64476.0,0.41468619]
[1721232874640,0.00084,64484.0,64476.0,0.40568619]
[1721232874848,0.00084,64484.0,64477.0,0.17738174]
[1721232875051,0.00084,64484.0,64478.0,0.08709802]
[1721232875222,0.001,64483.0,64479.0,0.17738174]
[1721232875643,0.001,64483.0,64481.0,0.155083]
[1721232875863,0.00084,64484.0,64482.0,0.49064675]
[1721232876098,0.00084,64484.0,64483.0,0.155079]
[1721232876296,0.00084,64484.0,64483.0,0.40574392]
[1721232876736,0.00184,64484.0,64483.0,0.25066492]
[1721232877306,0.00184,64484.0,64483.0,0.17738174]
[1721232877516,0.310164,64482.0,64477.0,0.009]
[1721232877812,0.155081,64483.0,64478.0,0.15438174]
[1721232878075,0.00184,64484.0,64478.0,0.15438174]
[1721232878278,0.00184,64484.0,64479.0,0.03051817]
[1721232878479,0.00184,64484.0,64480.0,0.15438174]
[1721232878947,0.00184,64484.0,64479.0,0.03051817]
[1721232878948,0.05184,64484.0,64479.0,0.03051817]
[1721232879161,0.00184,64484.0,64481.0,0.15438174]
[1721232879384,0.00184,64484.0,64476.0,0.1418]
[1721232879385,0.205086,64480.0,64479.0,0.15438174]
[1721232879602,0.205086,64480.0,64470.0,0.0625]
[1721232879603,0.05,64479.0,64470.0,0.0625]
[1721232879732,0.155095,64477.0,64471.0,0.1574834]
[1721232879935,0.00084,64484.0,64472.0,0.03022834]
[1721232880134,0.205082,64482.0,64473.0,0.1574831]
[1721232880360,0.00084,64484.0,64473.0,0.15438174]
[1721232880565,0.05,64481.0,64473.0,0.15438174]
[1721232880778,0.310188,64477.0,64472.0,0.03022834]
[1721232880976,0.05,64482.0,64479.0,0.014]
[1721232881220,0.12717479,64481.0,64479.0,0.014]
[1721232881460,0.828226,64480.0,64479.0,0.014]
[1721232881656,1.135605,64480.0,64479.0,0.014]
[1721232882090,0.825432,64480.0,64479.0,0.014]
[1721232882302,1.135605,64480.0,64479.0,0.014]
[1721232882723,0.05,64469.0,64463.0,0.0636]
[1721232882927,0.05,64470.0,64464.0,0.18652127]
[1721232883304,0.05,64471.0,64464.0,0.18652127]
[1721232883507,0.360197,64475.0,64465.0,0.023]
[1721232883684,0.05,64468.0,64466.0,0.15438174]
[1721232883889,0.05,64469.0,64467.0,0.023]
[1721232884092,0.051,64482.0,64468.0,0.1847958]
[1721232884294,0.051,64482.0,64469.0,0.023]
[1721232884295,0.155088,64480.0,64469.0,0.023]
[1721232884586,0.002794,64479.0,64471.0,0.0604]
[1721232884790,0.310168,64482.0,64473.0,0.0759]
[1721232884996,0.360168,64482.0,64474.0,0.18048322]
[1721232885217,0.310168,64482.0,64475.0,0.03397832]
[1721232885392,0.310168,64482.0,64476.0,0.17738174]
[1721232885629,0.155086,64481.0,64476.0,0.17738174]
[1721232885863,0.155086,64480.0,64476.0,0.17738174]
[1721232886012,0.05,64483.0,64476.0,0.17738174]
[1721232886218,0.310998,64484.0,64476.0,0.17738174]
[1721232886219,0.205091,64478.0,64477.0,0.02872601]
[1721232886427,0.205091,64478.0,64475.0,0.03397832]
[1721232886428,0.05,64478.0,64475.0,0.03397832]
[1721232886587,0.05,64478.0,64473.0,0.0759]
[1721232886588,0.00084,64484.0,64476.0,0.15748338]